bitfinex/quotes_BTCUSD_20240617
["timestamp","ask_amount","ask_price","bid_price","bid_amount"]
[1718636009398,4.05860534,65519.0,65518.0,0.00085]
[1718636009857,4.15260534,65519.0,65518.0,0.00085]
[1718636010060,4.73281934,65519.0,65518.0,0.00085]
[1718636010270,5.29437334,65519.0,65518.0,0.00085]
[1718636010475,5.28037334,65519.0,65518.0,0.00085]
[1718636010684,5.29437334,65519.0,65518.0,0.00085]
[1718636011352,5.29437334,65519.0,65513.0,0.00854]
[1718636011353,2.431289,65514.0,65513.0,0.00854]
[1718636011601,4.04929294,65514.0,65513.0,0.00854]
[1718636011896,4.524261,65514.0,65513.0,0.00854]
[1718636012129,4.547261,65514.0,65513.0,0.00854]
[1718636012356,3.186705,65514.0,65513.0,0.00854]
[1718636012596,3.33941756,65514.0,65513.0,0.00854]
[1718636012821,2.623005,65514.0,65513.0,0.00854]
[1718636013070,2.344805,65514.0,65513.0,0.00854]
[1718636013310,1.87827694,65514.0,65513.0,0.00854]
[1718636013560,2.02942771,65514.0,65513.0,0.00854]
[1718636013794,1.20114971,65514.0,65513.0,0.00854]
[1718636014013,1.06399894,65514.0,65513.0,0.00854]
[1718636014525,1.36927694,65514.0,65513.0,0.00854]
[1718636014770,1.38327694,65514.0,65513.0,0.00854]
[1718636014991,1.21527838,65514.0,65513.0,0.00854]
[1718636015487,0.91000038,65514.0,65513.0,0.00854]
[1718636015668,1.21527838,65514.0,65513.0,0.00854]
[1718636015936,0.91000038,65514.0,65513.0,0.00854]
[1718636016155,1.21527838,65514.0,65513.0,0.00854]
[1718636016642,1.5589895,65514.0,65513.0,0.00854]
[1718636016883,2.97441827,65514.0,65513.0,0.00854]
[1718636017116,2.90695756,65514.0,65513.0,0.00854]
[1718636018291,3.30379556,65514.0,65513.0,0.00854]
[1718636018536,3.83379556,65514.0,65513.0,0.00854]
[1718636018775,3.30379556,65514.0,65513.0,0.00854]
[1718636018996,4.17878233,65514.0,65513.0,0.00854]
[1718636019213,3.67989433,65514.0,65513.0,0.00854]
[1718636019451,3.52560756,65514.0,65513.0,0.00854]
[1718636019684,4.16160756,65514.0,65513.0,0.00854]
[1718636019922,3.20632956,65514.0,65513.0,0.00854]
[1718636020164,3.22032956,65514.0,65513.0,0.00854]
[1718636020640,3.22014586,65514.0,65513.0,0.00854]
[1718636020931,2.8927333,65514.0,65513.0,0.00854]
[1718636021169,2.4040553,65514.0,65513.0,0.00854]
[1718636021378,2.4180553,65514.0,65513.0,0.00854]
[1718636021599,2.0228953,65514.0,65513.0,0.00854]
[1718636021831,1.95320524,65514.0,65513.0,0.23614]
[1718636022105,1.96720524,65514.0,65513.0,0.23614]
[1718636022327,2.24302097,65514.0,65513.0,0.23614]
[1718636022560,2.1059178,65514.0,65513.0,0.00854]
[1718636022789,2.70938586,65514.0,65513.0,0.00854]
[1718636023011,2.72338586,65514.0,65513.0,0.00854]
[1718636023522,2.70938586,65514.0,65513.0,0.00854]
[1718636023754,2.96164586,65514.0,65513.0,0.00854]
[1718636023974,3.64764586,65514.0,65513.0,0.00854]
[1718636024434,3.26692386,65514.0,65513.0,0.00854]
[1718636024661,3.61692386,65514.0,65513.0,0.00854]
[1718636024860,4.01092386,65514.0,65513.0,0.00854]
[1718636025211,3.99692386,65514.0,65513.0,0.00854]
[1718636026098,4.83858786,65514.0,65513.0,0.00803964]
[1718636026310,2.011338,65512.0,65511.0,5.0]
[1718636026528,3.63542894,65512.0,65511.0,5.0]
[1718636026730,3.805119,65512.0,65511.0,5.0]
[1718636027592,2.82399201,65512.0,65511.0,5.0]
[1718636027801,2.364545,65512.0,65511.0,5.0]
[1718636028011,2.29485494,65512.0,65511.0,5.0]
[1718636028214,2.30885494,65512.0,65511.0,5.0]
[1718636028449,2.14815494,65512.0,65511.0,5.0]
[1718636028634,2.13415494,65512.0,65511.0,5.0]
[1718636029009,3.08631495,65512.0,65511.0,5.0]
[1718636029211,3.60799201,65512.0,65511.0,5.0]
[1718636029411,2.99070457,65512.0,65511.0,5.0]
[1718636029624,2.82254456,65512.0,65511.0,5.0]
[1718636029835,3.59254456,65512.0,65511.0,5.0]
[1718636030035,3.76070457,65512.0,65511.0,5.0]
[1718636030200,3.60654456,65512.0,65511.0,5.0]
[1718636030395,2.378545,65512.0,65511.0,5.0]
[1718636030622,2.29485494,65512.0,65511.0,5.0]
[1718636030841,2.30885494,65512.0,65511.0,5.0]
[1718636031507,2.14815494,65512.0,65511.0,5.0]
[1718636031712,2.13415494,65512.0,65511.0,5.0]
[1718636031861,2.24043123,65512.0,65511.0,5.0]
[1718636032081,2.42383123,65512.0,65511.0,5.0]
[1718636032288,2.3008675,65512.0,65511.0,5.0]
[1718636032689,2.2868675,65512.0,65511.0,5.0]
[1718636032889,3.1168675,65512.0,65511.0,5.0]
[1718636033113,2.35655756,65512.0,65511.0,5.0]
[1718636033522,2.2868675,65512.0,65511.0,5.0]
[1718636033772,2.3008675,65512.0,65511.0,5.0]
[1718636033889,2.3148675,65512.0,65511.0,5.0]
[1718636034086,3.1348675,65512.0,65511.0,5.0]
[1718636034335,4.01784456,65512.0,65511.0,5.0]
[1718636034561,4.08784456,65512.0,65511.0,5.0]
[1718636035408,4.7537695,65512.0,65511.0,4.90936141]
[1718636035628,4.9402992,65512.0,65511.0,4.90936141]
[1718636035836,4.8602992,65512.0,65511.0,4.90936141]
[1718636035975,4.62295852,65512.0,65511.0,4.90936141]
[1718636036180,4.83561495,65512.0,65511.0,4.72385341]
[1718636036423,4.82161495,65512.0,65511.0,4.72385341]
[1718636036622,9.36807095,65512.0,65511.0,4.72262341]
[1718636036825,9.14207095,65512.0,65511.0,4.72109341]
[1718636037023,8.70266195,65512.0,65511.0,4.64359341]
[1718636037220,8.71666195,65512.0,65511.0,4.64359341]
[1718636037459,4.02009394,65512.0,65511.0,4.60059341]
[1718636037613,4.19349394,65512.0,65511.0,4.60059341]
[1718636037823,4.85349394,65512.0,65511.0,4.60059341]
[1718636038030,5.12213894,65512.0,65511.0,4.60059341]
[1718636038230,4.85349394,65512.0,65511.0,4.60059341]
[1718636038435,4.0509195,65512.0,65511.0,4.60059341]
[1718636038634,4.6269195,65512.0,65511.0,4.60059341]
[1718636038843,4.67037589,65512.0,65511.0,4.60059341]
[1718636039120,5.00024076,65512.0,65511.0,4.49796701]
[1718636039441,4.83219401,65512.0,65511.0,4.49796701]
[1718636039653,5.54627501,65512.0,65511.0,4.49881701]
[1718636040092,4.61007074,65512.0,65511.0,4.49881701]
[1718636040294,4.53223518,65512.0,65511.0,4.49881701]
[1718636040502,4.82352218,65512.0,65511.0,4.49881701]
[1718636040918,4.83752218,65512.0,65511.0,4.49881701]
[1718636041119,5.19297218,65512.0,65511.0,4.49881701]
[1718636041365,4.32873406,65512.0,65511.0,4.49881701]
[1718636041566,5.10831778,65512.0,65511.0,4.49881701]
[1718636041777,5.12231778,65512.0,65511.0,4.49881701]
[1718636041975,7.28164707,65512.0,65511.0,4.49881701]
[1718636042149,7.5864991,65512.0,65511.0,4.49881701]
[1718636042367,6.32998384,65512.0,65511.0,4.49881701]
[1718636042601,6.32998384,65512.0,65511.0,4.44938813]
[1718636042602,6.31598384,65512.0,65511.0,4.44938813]
[1718636042735,6.52218945,65512.0,65511.0,4.44938813]
[1718636042942,5.42207689,65512.0,65511.0,4.44938813]
[1718636043160,5.54332867,65512.0,65511.0,4.44938813]
[1718636043360,5.40327689,65512.0,65511.0,4.44938813]
[1718636043586,5.24901861,65512.0,65511.0,4.44938813]
[1718636043785,5.27849575,65512.0,65511.0,4.44938813]
[1718636043987,6.17120831,65512.0,65511.0,4.44938813]
[1718636044212,6.49049531,65512.0,65511.0,4.44938813]
[1718636044556,5.56068572,65512.0,65511.0,4.44938813]
[1718636044792,6.31668572,65512.0,65511.0,4.44938813]
[1718636044997,5.55448011,65512.0,65511.0,4.44938813]
[1718636045212,6.15848011,65512.0,65511.0,4.44938813]
[1718636045416,6.22338011,65512.0,65511.0,4.44938813]
[1718636045624,6.20938011,65512.0,65511.0,4.44938813]
[1718636045826,6.52866711,65512.0,65511.0,4.44938813]
[1718636046044,6.54266711,65512.0,65511.0,4.44938813]
[1718636046252,6.52866711,65512.0,65511.0,4.44938813]
[1718636046471,6.91125137,65512.0,65511.0,4.44938813]
[1718636046688,6.92525137,65512.0,65511.0,4.44938813]
[1718636046889,6.91125137,65512.0,65511.0,4.44938813]
[1718636047235,6.75719959,65512.0,65511.0,4.44938813]
[1718636047453,6.74319959,65512.0,65511.0,4.44938813]
[1718636047900,4.97915303,65512.0,65511.0,4.44938813]
[1718636048057,4.37071303,65512.0,65511.0,4.44938813]
[1718636048257,5.52711303,65512.0,65511.0,4.37929451]
[1718636048458,4.54011303,65512.0,65511.0,4.3715559]
[1718636048680,5.65115455,65512.0,65511.0,4.3715559]
[1718636048885,5.81786711,65512.0,65511.0,4.3715559]
[1718636049249,5.82686711,65512.0,65511.0,4.3715559]
[1718636049495,5.84086711,65512.0,65511.0,4.3715559]
[1718636049699,5.12686711,65512.0,65511.0,4.3715559]
[1718636049844,5.11286711,65512.0,65511.0,4.3715559]
[1718636050042,5.65911711,65512.0,65511.0,4.3715559]
[1718636050247,5.67311711,65512.0,65511.0,4.3715559]
[1718636050460,5.83311711,65512.0,65511.0,4.3715559]
[1718636050664,6.8773592,65512.0,65511.0,4.36947065]
[1718636050908,7.1126462,65512.0,65511.0,4.36947065]
[1718636051121,7.9726462,65512.0,65511.0,4.36947065]
[1718636051324,7.9866462,65512.0,65511.0,4.36412071]
[1718636051838,7.9586462,65512.0,65511.0,4.36412071]
[1718636052244,7.9744105,65512.0,65511.0,4.36412071]
[1718636052692,7.9884105,65512.0,65511.0,4.36412071]
[1718636052861,7.95982023,65512.0,65511.0,4.36412071]
[1718636053087,7.95982023,65512.0,65511.0,4.32776371]
[1718636053088,7.85382023,65512.0,65511.0,4.32776371]
[1718636053314,7.89782023,65512.0,65511.0,4.32776371]
[1718636053524,7.89782023,65512.0,65511.0,4.32426429]
[1718636054385,8.17285062,65512.0,65511.0,4.32426429]
[1718636055033,9.59959718,65512.0,65511.0,2.26957188]
[1718636055254,8.58791718,65512.0,65511.0,2.00800139]
[1718636055470,13.71149366,65512.0,65511.0,2.00800139]
[1718636055898,13.71149366,65512.0,65511.0,1.89603139]
[1718636056587,13.72549366,65512.0,65511.0,1.89603139]
[1718636056813,13.69749366,65512.0,65511.0,1.89220943]
[1718636057021,13.72549366,65512.0,65511.0,1.88838747]
[1718636057232,13.72549366,65512.0,65511.0,1.88456551]
[1718636057468,13.72549366,65512.0,65511.0,1.88074355]
[1718636057678,13.71149366,65512.0,65511.0,1.88074355]
[1718636058142,13.71149366,65512.0,65511.0,1.87692025]
[1718636058377,13.71149366,65512.0,65511.0,1.85366025]
[1718636058600,13.15115254,65512.0,65511.0,1.80992772]
[1718636058819,13.84515254,65512.0,65511.0,1.76112023]
[1718636059064,13.84515254,65512.0,65511.0,1.7572109]
[1718636059500,13.51838988,65512.0,65511.0,1.7572109]
[1718636059922,13.50438988,65512.0,65511.0,1.7572109]
[1718636061889,13.51838988,65512.0,65511.0,1.7572109]
[1718636062108,13.50438988,65512.0,65511.0,1.7572109]
[1718636062574,13.51838988,65512.0,65511.0,1.7572109]
[1718636063711,13.51838988,65512.0,65511.0,1.7397855]
[1718636064553,13.51838988,65512.0,65511.0,1.6016455]
[1718636064769,13.51838988,65512.0,65511.0,1.5791035]
[1718636065217,13.5423117,65512.0,65511.0,1.5791035]
[1718636065635,13.5423117,65512.0,65488.0,0.0132294]
[1718636065636,0.9407,65489.0,65488.0,0.0132294]
[1718636065846,6.67343213,65489.0,65488.0,0.0132294]
[1718636066058,0.549687,65484.0,65483.0,0.00854]
[1718636066272,3.12339924,65484.0,65483.0,0.00854]
[1718636066500,3.22443375,65484.0,65483.0,0.00854]
[1718636066701,4.79989575,65484.0,65483.0,0.00854]
[1718636067133,5.49989575,65484.0,65483.0,0.00854]
[1718636067338,5.61572954,65484.0,65483.0,0.00854]
[1718636067793,5.55763354,65484.0,65483.0,0.00854]
[1718636068018,5.57163354,65484.0,65483.0,0.00854]
[1718636068223,5.45008854,65484.0,65483.0,0.00854]
[1718636069021,5.46408854,65484.0,65483.0,0.00854]
[1718636069230,5.61810259,65484.0,65483.0,0.00854]
[1718636070384,5.46410759,65484.0,65483.0,0.00854]
[1718636070586,4.77868959,65484.0,65483.0,0.00854]
[1718636070789,3.01284954,65484.0,65483.0,0.00854]
[1718636071381,2.70743154,65484.0,65483.0,0.00854]
[1718636071583,2.57759775,65484.0,65483.0,0.00854]
[1718636071800,2.49956324,65484.0,65483.0,0.00854]
[1718636071996,2.51356324,65484.0,65483.0,0.00854]
[1718636072205,2.59159775,65484.0,65483.0,0.00854]
[1718636072394,2.57759775,65484.0,65483.0,0.00854]
[1718636072627,2.59159775,65484.0,65483.0,0.00854]
[1718636072862,2.51356324,65484.0,65483.0,0.00854]
[1718636073036,2.59159775,65484.0,65483.0,0.00854]
[1718636073793,2.57759775,65484.0,65483.0,0.00854]
[1718636073992,3.34759775,65484.0,65483.0,0.00854]
[1718636074234,4.18269975,65484.0,65483.0,0.00854]
[1718636074648,4.48811775,65484.0,65483.0,0.00854]
[1718636074856,3.41269975,65484.0,65483.0,0.00854]
[1718636075065,4.04557675,65484.0,65483.0,0.00854]
[1718636075290,4.17168197,65484.0,65483.0,0.00854]
[1718636075508,3.74240897,65484.0,65483.0,0.00854]
[1718636076110,3.91101575,65484.0,65483.0,0.00854]
[1718636076490,3.60559775,65484.0,65483.0,0.00854]
[1718636076695,2.74953974,65484.0,65483.0,0.00854]
[1718636076901,2.79478345,65484.0,65483.0,0.00854]
[1718636077106,2.79478345,65484.0,65483.0,0.50914]
[1718636077258,2.71912474,65484.0,65483.0,0.50914]
[1718636077467,2.59762474,65484.0,65483.0,0.50914]
[1718636077683,2.50180697,65484.0,65483.0,0.50914]
[1718636078289,2.19638897,65484.0,65483.0,0.50914]
[1718636078492,2.17338897,65484.0,65483.0,0.50914]
[1718636078690,2.07338897,65484.0,65483.0,0.50914]
[1718636079061,1.76797097,65484.0,65483.0,0.50914]
[1718636079173,1.13636891,65484.0,65483.0,0.50914]
[1718636079379,0.30442597,65484.0,65483.0,0.50914]
[1718636079590,0.74855297,65484.0,65483.0,0.50914]
[1718636079781,0.03552597,65484.0,65483.0,0.52912379]
[1718636080012,0.26528861,65484.0,65483.0,0.62912379]
[1718636080413,0.25128861,65484.0,65483.0,0.62912379]
[1718636080614,2.05331829,65489.0,65487.0,0.01998379]
[1718636080821,2.05331829,65489.0,65488.0,0.57428379]
[1718636080822,2.51141029,65489.0,65488.0,0.57428379]
[1718636081083,2.24792056,65489.0,65488.0,0.57428379]
[1718636081299,2.13712056,65489.0,65488.0,0.57428379]
[1718636081724,1.74015456,65489.0,65488.0,0.57428379]
[1718636081934,1.74015456,65489.0,65488.0,0.67428379]
[1718636082141,2.19824556,65489.0,65488.0,0.67428379]
[1718636082315,2.21224556,65489.0,65488.0,0.67428379]
[1718636082550,1.90685156,65489.0,65488.0,0.67428379]
[1718636083039,1.69302956,65489.0,65488.0,0.72428379]
[1718636083473,1.70702956,65489.0,65488.0,0.72428379]
[1718636083676,2.16512056,65489.0,65488.0,0.62428379]
[1718636083879,2.15112056,65489.0,65488.0,0.57428379]
[1718636084096,2.15112056,65489.0,65488.0,0.6043]
[1718636084349,2.92763744,65489.0,65488.0,0.5553]
[1718636084754,2.99603538,65489.0,65488.0,0.5553]
[1718636084973,2.99603538,65489.0,65488.0,0.3059]
[1718636084974,3.64131852,65489.0,65488.0,0.3059]
[1718636085182,3.52731434,65489.0,65488.0,0.3059]
[1718636086070,3.22192034,65489.0,65488.0,0.3059]
[1718636086191,3.18492034,65489.0,65488.0,0.3059]
[1718636086401,2.66535786,65489.0,65488.0,0.3059]
[1718636086600,2.67935786,65489.0,65488.0,0.3059]
[1718636086831,3.59553986,65489.0,65488.0,0.3059]
[1718636087026,3.27614586,65489.0,65488.0,0.3059]
[1718636087237,3.18492034,65489.0,65488.0,0.3059]
[1718636087406,3.19892034,65489.0,65488.0,0.3059]
[1718636087674,3.19892034,65489.0,65488.0,0.3049]
[1718636087675,3.26315219,65489.0,65488.0,0.3049]
[1718636087998,3.18592034,65489.0,65488.0,0.3049]
[1718636088201,3.29115106,65489.0,65488.0,0.3049]
[1718636088410,3.19992034,65489.0,65488.0,0.3049]
[1718636088571,3.11023744,65489.0,65488.0,0.3049]
[1718636088976,3.23294717,65489.0,65488.0,0.3049]
[1718636089178,3.23294801,65489.0,65488.0,0.3049]
[1718636089382,3.31526906,65489.0,65488.0,0.3049]
[1718636089587,3.28726906,65489.0,65488.0,0.3049]
[1718636089784,3.28730611,65489.0,65488.0,0.3049]
[1718636089984,3.31987876,65489.0,65488.0,0.3049]
[1718636090195,3.23752219,65489.0,65488.0,0.3049]
[1718636090549,3.22352219,65489.0,65488.0,0.3049]
[1718636090772,3.22352219,65489.0,65485.0,0.235]
[1718636090773,1.068928,65486.0,65485.0,0.5477]
[1718636090990,1.36356315,65486.0,65485.0,0.5477]
[1718636091204,1.66897115,65486.0,65485.0,0.5477]
[1718636091839,2.16897115,65486.0,65485.0,0.5477]
[1718636092047,2.55437915,65486.0,65483.0,0.00854]
[1718636092268,1.374381,65484.0,65483.0,0.00854]
[1718636092493,1.78710988,65484.0,65483.0,0.00854]
[1718636092704,2.75885357,65484.0,65483.0,0.00854]
[1718636092927,3.03635684,65484.0,65483.0,0.00854]
[1718636093146,2.27635684,65484.0,65483.0,0.00854]
[1718636093375,3.00565728,65484.0,65483.0,0.00854]
[1718636093579,2.68635684,65484.0,65483.0,0.00854]
[1718636093789,2.27635684,65484.0,65483.0,0.00854]
[1718636093994,2.19885357,65484.0,65483.0,0.00854]
[1718636094459,2.89885357,65484.0,65483.0,0.00854]
[1718636094675,2.29035684,65484.0,65483.0,0.00854]
[1718636094875,2.98285357,65484.0,65483.0,0.00854]
[1718636095087,3.06035684,65484.0,65483.0,0.00854]
[1718636095291,2.44435684,65484.0,65483.0,0.00854]
[1718636095472,3.02685357,65484.0,65483.0,0.00854]
[1718636095675,2.70435684,65484.0,65483.0,0.00854]
[1718636095913,3.13035684,65484.0,65483.0,0.00854]
[1718636096334,2.94035684,65484.0,65483.0,0.00854]
[1718636096540,2.95435684,65484.0,65483.0,0.00854]
[1718636096751,2.63435684,65484.0,65483.0,0.00854]
[1718636096955,3.01435684,65484.0,65483.0,0.00854]
[1718636098438,2.89352788,65484.0,65483.0,0.00854]
[1718636100355,2.18352788,65484.0,65483.0,0.00854]
[1718636100584,2.88352788,65484.0,65483.0,0.00854]
[1718636100784,2.57810988,65484.0,65483.0,0.00854]
[1718636101228,2.69787399,65484.0,65483.0,0.00854]
[1718636101864,1.69245599,65484.0,65483.0,0.54904]
[1718636102076,1.41547119,65484.0,65483.0,0.54904]
[1718636102707,1.40147119,65484.0,65483.0,0.54904]
[1718636102917,1.38747119,65484.0,65483.0,0.54904]
[1718636103150,1.41547119,65484.0,65483.0,0.54904]
[1718636103387,1.39247119,65484.0,65483.0,0.54904]
[1718636103620,0.78163519,65484.0,65483.0,0.54904]
[1718636103844,1.08705319,65484.0,65483.0,0.54904]
[1718636104284,0.32348831,65484.0,65483.0,0.56902379]
[1718636104510,0.32348831,65484.0,65483.0,0.76902379]
[1718636104511,0.07077931,65484.0,65483.0,0.76902379]
[1718636104952,0.22348831,65484.0,65483.0,0.76902379]
[1718636105404,0.05796053,65484.0,65483.0,0.76902379]
[1718636105867,0.06996053,65484.0,65483.0,0.76902379]
[1718636106124,0.32154701,65486.0,65485.0,0.80388379]
[1718636106125,0.01613501,65486.0,65485.0,0.80388379]
[1718636106318,0.00093501,65486.0,65485.0,0.80388379]
[1718636106531,0.00093501,65486.0,65485.0,0.81388379]
[1718636107645,0.01493501,65486.0,65485.0,0.81388379]
[1718636107853,0.48704701,65486.0,65485.0,0.75388379]
[1718636108063,0.02893501,65486.0,65485.0,0.75388379]
[1718636108521,0.02893501,65486.0,65485.0,0.76388379]
[1718636108756,0.02893501,65486.0,65485.0,0.80388379]
[1718636109385,0.02893501,65486.0,65485.0,0.81388379]
[1718636110007,0.02893501,65486.0,65485.0,0.80388379]
[1718636111279,0.02893501,65486.0,65485.0,0.81388379]
[1718636113486,0.02893501,65486.0,65485.0,0.80388379]
[1718636113897,0.18163901,65486.0,65485.0,0.80388379]
[1718636114512,0.48704701,65486.0,65485.0,0.70388379]
[1718636114725,0.33434301,65486.0,65485.0,0.80388379]
[1718636114922,0.48704701,65486.0,65485.0,0.80388379]
[1718636115364,1.09786301,65486.0,65485.0,0.6339]
[1718636115820,1.09786301,65486.0,65485.0,0.5839]
[1718636116025,1.13483874,65486.0,65485.0,0.5839]
[1718636116228,1.13483874,65486.0,65485.0,0.6339]
[1718636118002,1.068963,65484.0,65483.0,0.05854]
[1718636118220,1.1513491,65484.0,65483.0,0.05854]
[1718636118483,1.56387592,65484.0,65483.0,0.00854]
[1718636118726,1.7779968,65484.0,65483.0,0.00854]
[1718636118939,1.66387592,65484.0,65483.0,0.00854]
[1718636119157,1.95257592,65484.0,65483.0,0.00854]
[1718636119371,2.27099392,65484.0,65483.0,0.00954]
[1718636119574,2.03734921,65484.0,65483.0,0.00954]
[1718636119802,1.70087592,65484.0,65483.0,0.00854]
[1718636120003,1.48659043,65484.0,65483.0,0.00854]
[1718636120208,1.46277596,65484.0,65483.0,0.00954]
[1718636120409,1.47677596,65484.0,65483.0,0.00954]
[1718636120654,1.17135796,65484.0,65483.0,0.00954]
[1718636120893,0.66337913,65484.0,65483.0,0.57604]
[1718636121216,0.05076604,65484.0,65483.0,0.69602379]
[1718636121425,0.05076604,65484.0,65483.0,0.74602379]
[1718636121606,0.81431104,65484.0,65483.0,0.74602379]
[1718636122044,0.50889304,65484.0,65483.0,0.74602379]
[1718636122251,0.05076604,65484.0,65483.0,0.74602379]
[1718636122469,0.21747504,65484.0,65483.0,0.74702379]
[1718636122638,0.05076604,65484.0,65483.0,0.74702379]
[1718636123052,0.05076604,65484.0,65483.0,0.74602379]
[1718636123203,0.05076604,65484.0,65483.0,0.74702379]
[1718636123590,0.05058224,65484.0,65483.0,0.93042379]
[1718636123795,0.06458224,65484.0,65483.0,0.93042379]
[1718636124429,0.05058224,65484.0,65483.0,0.92942379]
[1718636125348,0.05058224,65484.0,65483.0,0.74602379]
[1718636125892,0.06458224,65484.0,65483.0,0.74702379]
[1718636127361,0.21729124,65484.0,65483.0,0.74702379]
[1718636128547,0.52270924,65484.0,65483.0,0.74702379]
[1718636129270,0.21729124,65484.0,65483.0,0.74702379]
[1718636129708,0.82812724,65484.0,65483.0,0.64702379]
[1718636130172,0.52270924,65484.0,65483.0,0.74702379]
[1718636131258,0.486127,65484.0,65483.0,0.62704]
[1718636131725,0.791545,65484.0,65483.0,0.64702379]
[1718636133541,0.21706438,65484.0,65483.0,0.74702379]
[1718636133995,0.52248238,65484.0,65483.0,0.74702379]
[1718636134465,0.52248238,65484.0,65483.0,0.62704]
[1718636134466,0.82790038,65484.0,65483.0,0.62704]
[1718636134936,0.82790038,65484.0,65483.0,0.64702379]
[1718636135157,0.52248238,65484.0,65483.0,0.74702379]
[1718636141311,0.56816721,65484.0,65483.0,0.74702379]
[1718636142221,0.52248238,65484.0,65483.0,0.74702379]
[1718636142664,0.21706438,65484.0,65483.0,0.74702379]
[1718636142882,0.52248238,65484.0,65483.0,0.74702379]
[1718636143330,1.20192303,65484.0,65483.0,0.62704]
[1718636143546,0.91927005,65484.0,65483.0,0.74702379]
[1718636143755,1.13331838,65484.0,65483.0,0.38074]
[1718636144002,1.38151838,65484.0,65483.0,0.05954]
[1718636144240,1.49573047,65484.0,65483.0,0.05954]
[1718636144459,1.49573047,65484.0,65483.0,0.00954]
[1718636144460,1.83966526,65484.0,65483.0,0.00954]
[1718636144906,2.26808326,65484.0,65483.0,0.00954]
[1718636145127,2.34007908,65484.0,65483.0,0.00954]
[1718636145378,2.64267908,65484.0,65483.0,0.00954]
[1718636145827,3.90149708,65484.0,65483.0,0.00954]
[1718636146036,3.25476837,65484.0,65483.0,0.00954]
[1718636146243,4.60648737,65484.0,65483.0,0.00954]
[1718636146444,5.16545537,65484.0,65483.0,0.00954]
[1718636146635,4.51374408,65484.0,65483.0,0.00954]
[1718636146978,5.43631791,65484.0,65483.0,0.00854]
[1718636147398,5.46431791,65484.0,65483.0,0.00854]
[1718636147818,5.22592691,65484.0,65483.0,0.00854]
[1718636148036,5.22592691,65484.0,65459.0,0.2577]
[1718636148037,0.08,65472.0,65458.0,0.05]
[1718636148210,1.069467,65453.0,65449.0,0.01998379]
[1718636148464,1.80932238,65453.0,65450.0,0.05]
[1718636148697,1.90075653,65453.0,65450.0,0.05]
[1718636149154,1.80932238,65453.0,65450.0,0.05]
[1718636149669,2.12654164,65453.0,65445.0,0.00853]
[1718636150080,2.58483252,65453.0,65445.0,0.00853]
[1718636150273,3.34813252,65453.0,65445.0,0.05853]
[1718636150492,3.53950393,65453.0,65445.0,0.05853]
[1718636150708,3.88418203,65453.0,65445.0,0.05853]
[1718636151179,3.40662003,65453.0,65445.0,0.00853]
[1718636151398,2.97057052,65453.0,65445.0,0.05853]
[1718636151641,2.97057052,65453.0,65445.0,0.00853]
[1718636151824,2.97057052,65453.0,65445.0,0.05853]
[1718636152265,2.65335126,65453.0,65445.0,0.05853]
[1718636152467,2.97058091,65453.0,65445.0,0.05853]
[1718636152851,3.9122042,65453.0,65445.0,0.05853]
[1718636153210,4.2177662,65453.0,65445.0,0.05853]
[1718636153429,4.2177662,65453.0,65445.0,0.00853]
[1718636153430,1.069582,65446.0,65445.0,0.00853]
[1718636153692,3.77593636,65446.0,65445.0,0.00853]
[1718636153910,3.36785878,65446.0,65445.0,0.00853]
[1718636154142,3.40156298,65446.0,65445.0,0.00853]
[1718636154351,4.68227367,65446.0,65445.0,0.00853]
[1718636154608,4.78684003,65446.0,65445.0,0.00853]
[1718636154832,4.67284415,65446.0,65445.0,0.00353]
[1718636155237,4.7639182,65446.0,65445.0,0.00353]
[1718636155875,4.7779182,65446.0,65445.0,0.00353]
[1718636156308,3.80270933,65446.0,65445.0,0.00353]
[1718636156522,3.06769802,65446.0,65445.0,0.00353]
[1718636156743,4.27239539,65446.0,65445.0,0.00353]
[1718636156958,4.57799039,65446.0,65445.0,0.00353]
[1718636157170,4.5928648,65446.0,65445.0,0.00353]
[1718636157345,4.59291748,65446.0,65445.0,0.00353]
[1718636157560,4.59391748,65446.0,65445.0,0.00353]
[1718636157760,4.57991748,65446.0,65445.0,0.00353]
[1718636157956,4.59391748,65446.0,65445.0,0.00353]
[1718636158205,4.60791748,65446.0,65445.0,0.00353]
[1718636158358,4.59391748,65446.0,65445.0,0.00353]
[1718636158740,4.60791748,65446.0,65445.0,0.00353]
[1718636158952,4.91351248,65446.0,65445.0,0.00353]
[1718636159159,4.61270028,65446.0,65445.0,0.00353]
[1718636159389,4.71826028,65446.0,65445.0,0.00353]
[1718636159606,4.71826028,65446.0,65417.0,0.02851379]
[1718636159607,1.069943,65424.0,65417.0,0.02851379]
[1718636159821,3.15049317,65424.0,65418.0,0.02851379]
[1718636160036,3.60583742,65424.0,65419.0,0.01998379]
[1718636160251,2.97144142,65424.0,65420.0,0.01998379]
[1718636160467,2.97144142,65424.0,65421.0,0.01998379]
[1718636160668,3.27713942,65424.0,65421.0,0.01998379]
[1718636160873,3.27713942,65424.0,65423.0,0.03321319]
[1718636161068,2.97144142,65424.0,65423.0,0.0132294]
[1718636161527,3.27713942,65424.0,65423.0,0.0132294]
[1718636161723,3.30013942,65424.0,65423.0,0.0132294]
[1718636161874,3.61983742,65424.0,65423.0,0.0132294]
[1718636162070,3.31413942,65424.0,65423.0,0.0132294]
[1718636162335,2.99679517,65424.0,65423.0,0.0132294]
[1718636162535,3.30249317,65424.0,65423.0,0.0132294]
[1718636162771,3.31649317,65424.0,65423.0,0.0132294]
[1718636163795,3.01079517,65424.0,65423.0,0.0132294]
[1718636164019,1.76512329,65424.0,65423.0,0.0132294]
[1718636164226,1.76512329,65424.0,65423.0,0.38561319]
[1718636164227,1.82365329,65424.0,65423.0,0.38561319]
[1718636164446,1.97650229,65424.0,65423.0,0.38561319]
[1718636164638,2.28220029,65424.0,65423.0,0.38561319]
[1718636164848,2.28220029,65424.0,65423.0,0.2656294]
[1718636165075,2.58789829,65424.0,65423.0,0.2656294]
[1718636165275,5.52944509,65424.0,65423.0,0.0132294]
[1718636165488,1.355862,65419.0,65418.0,0.00853]
[1718636165703,2.2013548,65419.0,65418.0,0.00853]
[1718636165920,4.06592677,65419.0,65418.0,0.00853]
[1718636166370,3.61164777,65419.0,65418.0,0.00853]
[1718636166575,4.77634777,65419.0,65418.0,0.00853]
[1718636166825,3.93634777,65419.0,65418.0,0.00853]
[1718636167037,3.63062677,65419.0,65418.0,0.00853]
[1718636167254,2.3040158,65419.0,65418.0,0.00853]
[1718636167472,1.9982948,65419.0,65418.0,0.00853]
[1718636167701,0.8337528,65419.0,65418.0,0.00853]
[1718636167913,1.12783088,65419.0,65418.0,0.02851379]